fUST/lending_fUST_20240816
["ID","MTS","AMOUNT","RATE_DAILY","PERIOD"]
[335070158,1723806641517,-502.70132091,0.00043835,120]
[335070159,1723806641527,-500.0,0.00043835,120]
[335070160,1723806641536,-500.0,0.00043835,120]
[335070161,1723806641546,-500.0,0.00043835,120]
[335070162,1723806641555,-501.66143419,0.00043835,120]
[335070163,1723806641565,-500.0,0.00043835,120]
[335070164,1723806641580,-500.0,0.00043835,120]
[335070165,1723806641590,-500.0,0.00043835,120]
[335070166,1723806641599,-622.77,0.00043835,120]
[335070167,1723806641609,-502.77915707,0.00043835,120]
[335070168,1723806641618,-500.0,0.00043835,120]
[335070169,1723806641628,-288.5780147,0.00043835,120]
[335070170,1723806641638,-500.0,0.00043835,120]
[335070171,1723806641647,-500.0,0.00043835,120]
[335070172,1723806641657,-500.0,0.00043835,120]
[335070173,1723806641666,-292.62884107,0.00043835,120]
[335070174,1723806641675,-500.0,0.00043835,120]
[335070175,1723806641684,-500.0,0.00043835,120]
[335070176,1723806641694,-500.0,0.00043835,120]
[335070177,1723806641703,-500.0,0.00043835,120]
[335070178,1723806641712,-502.92202061,0.00043835,120]
[335070179,1723806641722,-501.41103982,0.00043835,120]
[335070180,1723806641732,-500.0,0.00043835,120]
[335070181,1723806641742,-500.0,0.00043835,120]
[335070182,1723806641751,-508.87321195,0.00043835,120]
[335070183,1723806641761,-500.0,0.00043835,120]
[335070184,1723806641770,-517.34504639,0.00043835,120]
[335070185,1723806641780,-500.0,0.00043835,120]
[335070186,1723806641789,-500.0,0.00043835,120]
[335070187,1723806641799,-500.0,0.00043835,120]
[335070188,1723806641809,-2241.99,0.00043835,120]
[335070189,1723806641820,-500.0,0.00043835,120]
[335070190,1723806641829,-500.0,0.00043835,120]
[335070191,1723806641838,-502.644377,0.00043835,120]
[335070192,1723806641848,-500.0,0.00043835,120]
[335070193,1723806641857,-517.81691994,0.00043835,120]
[335070194,1723806641867,-500.0,0.00043835,120]
[335070195,1723806641877,-500.0,0.00043835,120]
[335070196,1723806641886,-500.0,0.00043835,120]
[335070197,1723806641896,-500.0,0.00043835,120]
[335070198,1723806641906,-180.66743,0.00043835,120]
[335070199,1723806641916,-500.0,0.00043835,120]
[335070200,1723806641926,-206.16451574,0.00043835,120]
[335070201,1723806641935,-500.0,0.00043835,120]
[335070202,1723806641944,-499.0448981,0.00043835,120]
[335070203,1723806641954,-500.0,0.00043835,120]
[335070204,1723806641964,-502.83623963,0.00043835,120]
[335070205,1723806641973,-253.57037595,0.00043835,20]
[335070206,1723806641983,-500.0,0.00043835,120]
[335070207,1723806641993,-500.0,0.00043835,120]
[335070208,1723806642003,-499.26510247,0.00043835,120]
[335070209,1723806642013,-500.0,0.00043835,120]
[335070210,1723806642023,-500.0,0.00043835,120]
[335070211,1723806642033,-500.0,0.00043835,120]
[335070212,1723806642043,-500.0,0.00043835,120]
[335070213,1723806642053,-501.64796173,0.00043835,120]
[335070214,1723806642062,-500.0,0.00043835,120]
[335070215,1723806642073,-501.59609274,0.00043835,120]
[335070216,1723806642083,-500.0,0.00043835,120]
[335070217,1723806642093,-503.43785294,0.00043835,120]
[335070218,1723806642102,-500.0,0.00043835,120]
[335070219,1723806642113,-500.0,0.00043835,120]
[335070220,1723806642122,-500.0,0.00043835,120]
[335070221,1723806642133,-572.9,0.00043835,120]
[335070222,1723806642143,-323.70546728,0.00043835,120]
[335070223,1723806642152,-500.0,0.00043835,120]
[335070224,1723806642163,-500.0,0.00043835,120]
[335070225,1723806642173,-500.62320602,0.00043835,120]
[335070226,1723806642184,-500.0,0.00043835,120]
[335070227,1723806642194,-500.0,0.00043835,120]
[335070228,1723806642204,-500.0,0.00043835,120]
[335070229,1723806642214,-1017.95,0.00043835,120]
[335070230,1723806642224,-503.30799699,0.00043835,120]
[335070231,1723806642233,-500.0,0.00043835,120]
[335070232,1723806642243,-500.0,0.00043835,120]
[335070233,1723806642254,-500.0,0.00043835,120]
[335070234,1723806642263,-500.0,0.00043835,120]
[335070235,1723806642273,-500.0,0.00043835,120]
[335070236,1723806642282,-500.0,0.00043835,120]
[335070237,1723806642292,-515.38860008,0.00043835,120]
[335070238,1723806642302,-500.0,0.00043835,120]
[335070239,1723806642311,-500.0,0.00043835,120]
[335070240,1723806642323,-503.64029191,0.00043835,120]
[335070241,1723806642333,-517.14856779,0.00043835,120]
[335070242,1723806642342,-500.0,0.00043835,120]
[335070243,1723806642351,-500.0,0.00043835,120]
[335070244,1723806642361,-500.0,0.00043835,120]
[335070245,1723806642371,-682.43,0.00043835,120]
[335070246,1723806642380,-500.0,0.00043835,120]
[335070247,1723806642390,-500.0,0.00043835,120]
[335070248,1723806642399,-501.50864127,0.00043835,120]
[335070249,1723806642408,-500.0,0.00043835,120]
[335070250,1723806642417,-500.0,0.00043835,120]
[335070251,1723806642427,-500.0,0.00043835,120]
[335070252,1723806642437,-500.0,0.00043835,120]
[335070253,1723806642446,-500.0,0.00043835,120]
[335070254,1723806642456,-859.12,0.00043835,120]
[335070255,1723806642469,-500.0,0.00043835,120]
[335070256,1723806642478,-842.8,0.00043835,120]
[335070257,1723806642488,-504.27944199,0.00043835,120]
[335070258,1723806642498,-504.53005604,0.00043835,120]
[335070259,1723806642507,-500.0,0.00043835,120]
[335070260,1723806642516,-500.0,0.00043835,120]
[335070261,1723806642526,-500.0,0.00043835,120]
[335070262,1723806642535,-501.89642165,0.00043835,120]
[335070263,1723806642545,-500.0,0.00043835,120]
[335070264,1723806642554,-500.47343726,0.00043835,120]
[335070265,1723806642564,-500.0,0.00043835,120]
[335070266,1723806642576,-500.0,0.00043835,120]
[335070267,1723806642585,-504.32328428,0.00043835,120]
[335070268,1723806642595,-500.0,0.00043835,120]
[335070269,1723806642604,-500.0,0.00043835,120]
[335070270,1723806642613,-500.0,0.00043835,120]
[335070271,1723806642623,-500.0,0.00043835,7]
[335070272,1723806642632,-500.0,0.00043835,120]
[335070273,1723806642642,-500.0,0.00043835,120]
[335070274,1723806642651,-500.0,0.00043835,120]
[335070275,1723806642661,-500.0,0.00043835,120]
[335070276,1723806642670,-500.0,0.00043835,120]
[335070277,1723806642679,-500.0,0.00043835,120]
[335070278,1723806642689,-500.0,0.00043835,120]
[335070279,1723806642699,-1541.74,0.00043835,120]
[335070280,1723806642709,-500.0,0.00043835,120]
[335070281,1723806642718,-1541.74,0.00043835,120]
[335070282,1723806642727,-512.20549153,0.00043835,120]
[335070283,1723806642736,-1541.74,0.00043835,120]
[335070284,1723806642746,-1541.74,0.00043835,120]
[335070285,1723806642756,-1541.74,0.00043835,120]
[335070286,1723806642765,-1541.74,0.00043835,120]
[335070287,1723806642774,-500.0,0.00043835,120]
[335070288,1723806642783,-1541.74,0.00043835,120]
[335070289,1723806642792,-1541.74,0.00043835,120]
[335070290,1723806642910,-1541.74,0.00043835,120]
[335070291,1723806642920,-1541.74,0.00043835,120]
[335070292,1723806642930,-1541.74,0.00043835,120]
[335070293,1723806642940,-1541.74,0.00043835,120]
[335070294,1723806642950,-1541.74,0.00043835,120]
[335070295,1723806642959,-507.90365958,0.00043835,120]
[335070296,1723806642968,-1541.74,0.00043835,120]
[335070297,1723806642978,-500.0,0.00043835,120]
[335070298,1723806642987,-1541.74,0.00043835,120]
[335070299,1723806642996,-1541.74,0.00043835,120]
[335070300,1723806643006,-1541.74,0.00043835,120]
[335070301,1723806643015,-1541.74,0.00043835,120]
[335070302,1723806643024,-1541.74,0.00043835,120]
[335070303,1723806643033,-1541.74,0.00043835,120]
[335070304,1723806643042,-1541.74,0.00043835,120]
[335070305,1723806643051,-1541.74,0.00043835,120]
[335070306,1723806643060,-1541.74,0.00043835,120]
[335070307,1723806643071,-1541.88454231,0.00043835,120]
[335070308,1723806643081,-536.69157138,0.00043835,120]
[335070309,1723806643090,-500.0,0.00043835,120]
[335070310,1723806643099,-503.56344608,0.00043835,120]
[335070311,1723806643109,-598.16,0.00043835,120]
[335070312,1723806643118,-503.57336223,0.00043835,120]
[335070313,1723806643128,-500.0,0.00043835,120]
[335070314,1723806643137,-511.61600441,0.00043835,120]
[335070315,1723806643146,-500.0,0.00043835,120]
[335070316,1723806643155,-500.0,0.00043835,120]
[335070317,1723806643164,-503.18206037,0.00043835,120]
[335070318,1723806643174,-500.80485468,0.00043835,120]
[335070319,1723806643183,-502.62160455,0.00043835,120]
[335070320,1723806643193,-500.0,0.00043835,120]
[335070321,1723806643202,-534.49,0.00043835,120]
[335070322,1723806643211,-500.0,0.00043835,120]
[335070323,1723806643220,-510.2088981,0.00043835,120]
[335070324,1723806643230,-500.0,0.00043835,120]
[335070325,1723806643239,-753.3,0.00043835,120]
[335070326,1723806643252,-507.81119699,0.00043835,120]
[335070327,1723806643261,-200.0,0.00043835,7]
[335070328,1723806643270,-500.0,0.00043835,120]
[335070329,1723806643279,-506.79818407,0.00043835,120]
[335070330,1723806643290,-504.11746152,0.00043835,120]
[335070331,1723806643299,-531.01320266,0.00043835,120]
[335070332,1723806643308,-500.0,0.00043835,120]
[335070333,1723806643317,-534.92153647,0.00043835,120]
[335070334,1723806643330,-502.92532352,0.00043835,120]
[335070335,1723806643340,-500.0,0.00043835,120]
[335070336,1723806643350,-502.60062585,0.00043835,120]
[335070337,1723806643359,-500.0,0.00043835,120]
[335070338,1723806643368,-185.87554903,0.00043835,120]
[335070339,1723806643378,-729.53,0.00043835,120]
[335070340,1723806643388,-500.0,0.00043835,120]
[335070341,1723806643398,-500.0,0.00043835,120]
[335070342,1723806643407,-500.0,0.00043835,120]
[335070343,1723806643417,-500.0,0.00043835,120]
[335070344,1723806643426,-500.0,0.00043835,120]
[335070345,1723806643435,-500.0,0.00043835,120]
[335070346,1723806643446,-500.0,0.00043835,120]
[335070347,1723806643455,-500.0,0.00043835,120]
[335070348,1723806643464,-500.0,0.00043835,120]
[335070349,1723806643474,-500.0,0.00043835,120]
[335070350,1723806643483,-500.0,0.00043835,120]
[335070351,1723806643493,-500.0,0.00043835,120]
[335070352,1723806643502,-500.0,0.00043835,120]
[335070353,1723806643512,-500.0,0.00043835,120]
[335070354,1723806643521,-500.0,0.00043835,120]
[335070355,1723806643531,-596.65207557,0.00043835,120]
[335070356,1723806643540,-500.0,0.00043835,120]
[335070357,1723806643550,-500.0,0.00043835,120]
[335070358,1723806643559,-500.16305066,0.00043835,120]
[335070359,1723806643570,-603.03,0.00043835,120]
[335070360,1723806643580,-501.65745227,0.00043835,120]
[335070361,1723806643589,-500.0,0.00043835,120]
[335070362,1723806643598,-501.38324798,0.00043835,120]
[335070363,1723806643607,-500.0,0.00043835,120]
[335070364,1723806643617,-504.23447486,0.00043835,120]
[335070365,1723806643626,-500.0,0.00043835,120]
[335070366,1723806643636,-500.0,0.00043835,120]
[335070367,1723806643645,-500.84370357,0.00043835,120]
[335070368,1723806643654,-500.0,0.00043835,120]
[335070369,1723806643664,-658.53,0.00043835,120]
[335070370,1723806643674,-1287.21,0.00043835,120]
[335070371,1723806643684,-502.2238832,0.00043835,120]
[335070372,1723806643693,-500.0,0.00043835,120]
[335070373,1723806643702,-500.0,0.00043835,120]
[335070374,1723806643712,-500.0,0.00043835,120]
[335070375,1723806643721,-500.0,0.00043835,120]
[335070376,1723806643730,-502.10933279,0.00043835,120]
[335070377,1723806643739,-500.0,0.00043835,120]
[335070378,1723806643749,-502.02026745,0.00043835,120]
[335070379,1723806643759,-500.0,0.00043835,120]
[335070380,1723806643768,-376.98802734,0.00043835,30]
[335070381,1723806643778,-500.0,0.00043835,120]
[335070382,1723806643787,-645.09545101,0.00043835,120]
[335070383,1723806643797,-988.44,0.00043835,120]
[335070384,1723806643807,-500.0,0.00043835,120]
[335070385,1723806643817,-500.0,0.00043835,120]
[335070386,1723806643828,-500.0,0.00043835,120]
[335070387,1723806643838,-500.0,0.00043835,120]
[335070388,1723806643847,-500.0,0.00043835,120]
[335070389,1723806643857,-541.7301274,0.00043835,120]
[335070390,1723806643866,-586.26,0.00043835,120]
[335070391,1723806643876,-500.79753519,0.00043835,120]
[335070392,1723806643886,-500.0,0.00043835,120]
[335070393,1723806643895,-333.31335251,0.00043835,120]
[335070394,1723806643903,-500.0,0.00043835,120]
[335070395,1723806643913,-500.0,0.00043835,120]
[335070396,1723806643922,-1151.1,0.00043835,7]
[335070397,1723806643931,-201.12130316,0.00043835,120]
[335070398,1723806643941,-500.0,0.00043835,120]
[335070399,1723806643952,-500.0,0.00043835,120]
[335070400,1723806643965,-501.77046906,0.00043835,120]
[335070401,1723806643975,-500.0,0.00043835,120]
[335070402,1723806643985,-926.34,0.00043835,120]
[335070403,1723806643994,-500.0,0.00043835,120]
[335070404,1723806644005,-500.0,0.00043835,120]
[335070405,1723806644015,-500.0,0.00043835,120]
[335070406,1723806644025,-500.0,0.00043835,120]
[335070408,1723806644035,-879.72,0.00043835,120]
[335070410,1723806644044,-500.0,0.00043835,120]
[335070412,1723806644054,-503.26745851,0.00043835,120]
[335070414,1723806644065,-500.0,0.00043835,120]
[335070416,1723806644077,-500.0,0.00043835,120]
[335070418,1723806644087,-500.0,0.00043835,7]
[335070420,1723806644097,-500.0,0.00043835,120]
[335070422,1723806644107,-500.0,0.00043835,120]
[335070424,1723806644118,-500.0,0.00043835,120]
[335070426,1723806644128,-500.7796456,0.00043835,120]
[335070428,1723806644138,-500.0,0.00043835,120]
[335070430,1723806644147,-500.0,0.00043835,120]
[335070432,1723806644157,-504.49386152,0.00043835,120]
[335070434,1723806644167,-504.84960246,0.00043835,120]
[335070436,1723806644176,-500.0,0.00043835,120]
[335070438,1723806644186,-500.0,0.00043835,120]
[335070439,1723806644196,-500.0,0.00043835,120]
[335070440,1723806644205,-500.0,0.00043835,120]
[335070441,1723806644215,-500.0,0.00043835,120]
[335070442,1723806644224,-500.0,0.00043835,120]
[335070443,1723806644233,-500.0,0.00043835,120]
[335070444,1723806644242,-500.0,0.00043835,120]
[335070445,1723806644253,-500.0,0.00043835,120]
[335070446,1723806644266,-376.49197384,0.00043835,120]
[335070447,1723806644275,-500.90960856,0.00043835,120]
[335070448,1723806644285,-500.0,0.00043835,120]
[335070449,1723806644294,-500.0,0.00043835,120]
[335070450,1723806644303,-503.48486232,0.00043835,120]
[335070451,1723806644313,-1106.84,0.00043835,120]
[335070452,1723806644324,-673.1,0.00043835,120]
[335070453,1723806644335,-500.0,0.00043835,120]
[335070454,1723806644344,-500.0,0.00043835,120]
[335070455,1723806644353,-500.0,0.00043835,120]
[335070456,1723806644363,-500.0,0.00043835,120]
[335070457,1723806644372,-202.02022492,0.00043835,120]
[335070458,1723806644382,-500.0,0.00043835,120]
[335070459,1723806644391,-500.0,0.00043835,120]
[335070460,1723806644401,-500.0,0.00043835,120]
[335070461,1723806644411,-500.0,0.00043835,120]
[335070462,1723806644422,-505.62444529,0.00043835,120]
[335070463,1723806644434,-1367.42,0.00043835,120]
[335070464,1723806644446,-500.0,0.00043835,120]
[335070465,1723806644455,-500.0,0.00043835,120]
[335070466,1723806644464,-500.0,0.00043835,120]
[335070467,1723806644474,-500.0,0.00043835,120]
[335070468,1723806644484,-500.0,0.00043835,120]
[335070469,1723806644494,-3705.65,0.00043835,120]
[335070470,1723806644504,-500.30633317,0.00043835,120]
[335070471,1723806644513,-500.0,0.00043835,120]
[335070472,1723806644524,-500.0,0.00043835,120]
[335070473,1723806644534,-500.0,0.00043835,120]
[335070474,1723806644544,-500.0,0.00043835,120]
[335070475,1723806644555,-500.0,0.00043835,120]
[335070476,1723806644564,-354.40660864,0.00043835,120]
[335070477,1723806644576,-500.0,0.00043835,120]
[335070478,1723806644586,-957.45,0.00043835,120]
[335070479,1723806644595,-500.0,0.00043835,120]
[335070480,1723806644604,-500.0,0.00043835,120]
[335070481,1723806644614,-500.0,0.00043835,120]
[335070482,1723806644626,-501.52531322,0.00043835,120]
[335070483,1723806644637,-500.0,0.00043835,120]
[335070484,1723806644646,-525.74,0.00043835,120]
[335070485,1723806644655,-500.0,0.00043835,120]
[335070486,1723806644665,-718.55,0.00043835,120]
[335070487,1723806644674,-500.93352816,0.00043835,120]
[335070488,1723806644683,-500.0,0.00043835,120]
[335070489,1723806644692,-500.0,0.00043835,120]
[335070490,1723806644702,-500.0,0.00043835,120]
[335070491,1723806644711,-500.0,0.00043835,120]
[335070492,1723806644720,-500.0,0.00043835,30]
[335070493,1723806644730,-500.0,0.00043835,120]
[335070494,1723806644739,-684.63,0.00043835,120]
[335070495,1723806644748,-5797.86,0.00043835,120]
[335070496,1723806644757,-500.0,0.00043835,120]
[335070497,1723806644766,-500.0,0.00043835,120]
[335070498,1723806644775,-500.0,0.00043835,120]
[335070499,1723806644784,-500.0,0.00043835,120]
[335070500,1723806644793,-981.49,0.00043835,120]
[335070501,1723806644802,-500.0,0.00043835,120]
[335070502,1723806644812,-300.84939592,0.00043835,120]
[335070503,1723806644821,-500.0,0.00043835,120]
[335070504,1723806644831,-500.0,0.00043835,120]
[335070505,1723806644840,-547.52,0.00043835,120]
[335070506,1723806644850,-500.0,0.00043835,7]
[335070507,1723806644859,-1840.74,0.00043835,21]
[335070508,1723806644869,-500.0,0.00043835,120]
[335070509,1723806644879,-505.09737521,0.00043835,120]
[335070510,1723806644888,-500.0,0.00043835,120]
[335070511,1723806644898,-550.24,0.00043835,120]
[335070512,1723806644908,-500.0,0.00043835,120]
[335070513,1723806644917,-500.0,0.00043835,120]
[335070514,1723806644928,-936.72,0.00043835,120]
[335070515,1723806644937,-574.63,0.00043835,120]
[335070516,1723806644947,-500.0,0.00043835,120]
[335070517,1723806644956,-602.31,0.00043835,120]
[335070518,1723806644965,-500.0,0.00043835,120]
[335070519,1723806644976,-500.0,0.00043835,120]
[335070520,1723806644986,-500.0,0.00043835,120]
[335070521,1723806644995,-500.0,0.00043835,2]
[335070522,1723806645004,-1126.57,0.00043835,120]
[335070523,1723806645014,-500.0,0.00043835,120]
[335070524,1723806645023,-971.69,0.00043835,120]
[335070525,1723806645034,-523.13109607,0.00043835,120]
[335070526,1723806645043,-151.0,0.00043835,120]
[335070527,1723806645052,-500.0,0.00043835,120]
[335070528,1723806645062,-512.46722851,0.00043835,120]
[335070529,1723806645073,-500.0,0.00043835,120]
[335070530,1723806645083,-500.0,0.00043835,120]
[335070531,1723806645093,-684.14,0.00043835,120]
[335070532,1723806645103,-1047.91,0.00043835,120]
[335070533,1723806645114,-503.96346188,0.00043835,120]
[335070534,1723806645124,-500.0,0.00043835,120]
[335070535,1723806645134,-542.67,0.00043835,120]
[335070536,1723806645144,-500.0,0.00043835,120]
[335070537,1723806645154,-500.0,0.00043835,120]
[335070538,1723806645163,-502.87,0.00043835,120]
[335070539,1723806645172,-500.0,0.00043835,120]
[335070540,1723806645182,-696.15,0.00043835,120]
[335070541,1723806645193,-500.0,0.00043835,120]
[335070542,1723806645202,-500.0,0.00043835,120]
[335070543,1723806645212,-500.0,0.00043835,120]
[335070544,1723806645221,-500.0,0.00043835,120]
[335070545,1723806645230,-500.0,0.00043835,120]
[335070546,1723806645239,-193.353333,0.00043835,120]
[335070547,1723806645250,-659.11,0.00043835,120]
[335070548,1723806645263,-500.0,0.00043835,120]
[335070549,1723806645272,-500.0,0.00043835,120]
[335070550,1723806645282,-500.0,0.00043835,120]
[335070551,1723806645291,-500.0,0.00043835,120]
[335070552,1723806645302,-500.0,0.00043835,120]
[335070553,1723806645312,-500.0,0.00043835,120]
[335070554,1723806645323,-500.0,0.00043835,120]
[335070555,1723806645333,-502.42270855,0.00043835,120]
[335070556,1723806645342,-500.0,0.00043835,120]
[335070557,1723806645351,-500.0,0.00043835,120]
[335070558,1723806645361,-193.353333,0.00043835,120]
[335070559,1723806645371,-500.0,0.00043835,120]
[335070560,1723806645380,-2240.58,0.00043835,120]
[335070561,1723806645390,-774.35,0.00043835,120]
[335070562,1723806645400,-500.0,0.00043835,120]
[335070563,1723806645409,-500.0,0.00043835,120]
[335070564,1723806645419,-500.0,0.00043835,120]
[335070565,1723806645536,-151.0,0.00043835,120]
[335070566,1723806645547,-501.71965185,0.00043835,120]
[335070567,1723806645559,-500.0,0.00043835,120]
[335070568,1723806645569,-500.0,0.00043835,120]
[335070569,1723806645579,-755.94,0.00043835,120]
[335070570,1723806645589,-500.0,0.00043835,120]
[335070571,1723806645600,-151.0,0.00043835,120]
[335070572,1723806645611,-638.33,0.00043835,120]
[335070573,1723806645621,-500.0,0.00043835,120]
[335070574,1723806645632,-500.0,0.00043835,120]
[335070575,1723806645643,-1738.14,0.00043835,120]
[335070576,1723806645652,-500.0,0.00043835,120]
[335070577,1723806645663,-500.0,0.00043835,120]
[335070578,1723806645673,-500.0,0.00043835,120]
[335070579,1723806645682,-500.0,0.00043835,120]
[335070580,1723806645692,-513.1413314,0.00043835,120]
[335070581,1723806645702,-505.54323713,0.00043835,120]
[335070582,1723806645712,-588.14,0.00043835,120]
[335070583,1723806645721,-500.0,0.00043835,120]
[335070584,1723806645731,-500.0,0.00043835,120]
[335070585,1723806645740,-552.87,0.00043835,120]
[335070586,1723806645750,-500.0,0.00043835,120]
[335070587,1723806645759,-617.01,0.00043835,120]
[335070588,1723806645769,-500.0,0.00043835,120]
[335070589,1723806645778,-604.07,0.00043835,120]
[335070590,1723806645788,-500.0,0.00043835,60]
[335070591,1723806645797,-916.69,0.00043835,120]
[335070592,1723806645807,-504.79179776,0.00043835,120]
[335070593,1723806645817,-500.0,0.00043835,120]
[335070594,1723806645834,-462.92434819,0.00043835,120]
[335070595,1723806645844,-500.0,0.00043835,120]
[335070596,1723806645853,-500.0,0.00043835,120]
[335070597,1723806645863,-151.0,0.00043835,120]
[335070598,1723806645873,-500.0,0.00043835,120]
[335070601,1723806645883,-599.75,0.00043835,120]
[335070603,1723806645892,-1470.19,0.00043835,120]
[335070604,1723806645901,-500.6476784,0.00043835,120]
[335070606,1723806645910,-500.0,0.00043835,120]
[335070607,1723806645919,-505.26904164,0.00043835,120]
[335070608,1723806645929,-513.66216797,0.00043835,120]
[335070609,1723806645938,-500.0,0.00043835,120]
[335070610,1723806645948,-704.4,0.00043835,120]
[335070611,1723806645957,-500.81841676,0.00043835,120]
[335070612,1723806645968,-505.74159461,0.00043835,120]
[335070613,1723806645978,-746.34,0.00043835,120]
[335070614,1723806645987,-502.16813378,0.00043835,120]
[335070615,1723806645996,-2835.1,0.00043835,120]
[335070616,1723806646006,-500.0,0.00043835,120]
[335070617,1723806646016,-1849.37,0.00043835,120]
[335070618,1723806646026,-500.0,0.00043835,120]
[335070619,1723806646035,-520.08641047,0.00043835,120]
[335070620,1723806646046,-500.0,0.00043835,120]
[335070621,1723806646057,-503.80439359,0.00043835,120]
[335070622,1723806646068,-789.58,0.00043835,120]
[335070623,1723806646079,-500.0,0.00043835,120]
[335070624,1723806646089,-500.0,0.00043835,120]
[335070625,1723806646099,-500.0,0.00043835,120]
[335070626,1723806646108,-500.0,0.00043835,120]
[335070627,1723806646118,-500.0,0.00043835,120]
[335070628,1723806646128,-151.0,0.00043835,120]
[335070629,1723806646138,-679.91,0.00043835,120]
[335070630,1723806646147,-500.0,0.00043835,120]
[335070631,1723806646157,-500.0,0.00043835,120]
[335070632,1723806646169,-1146.8,0.00043835,120]
[335070633,1723806646179,-500.98686136,0.00043835,120]
[335070634,1723806646188,-500.0,0.00043835,120]
[335070636,1723806646198,-166.5354572,0.00043835,120]
[335070638,1723806646208,-546.74420096,0.00043835,120]
[335070639,1723806646218,-3222.61,0.00043835,120]
[335070640,1723806646228,-500.0,0.00043835,120]
[335070641,1723806646238,-500.0,0.00043835,120]
[335070642,1723806646248,-500.0,0.00043835,120]
[335070643,1723806646261,-500.0,0.00043835,120]
[335070644,1723806646270,-6445.66,0.00043835,120]
[335070645,1723806646279,-500.0,0.00043835,120]
[335070646,1723806646289,-500.0,0.00043835,10]
[335070647,1723806646299,-579.67,0.00043835,120]
[335070648,1723806646308,-164.593015,0.00043835,120]
[335070649,1723806646318,-164.593015,0.00043835,120]
[335070650,1723806646336,-880.64,0.00043835,120]
[335070651,1723806646348,-164.593015,0.00043835,120]
[335070652,1723806646359,-500.0,0.00043835,120]
[335070653,1723806646368,-500.0,0.00043835,120]
[335070654,1723806646379,-500.0,0.00043835,120]
[335070655,1723806646388,-153.525346,0.00043835,120]
[335070656,1723806646398,-508.7420227,0.00043835,120]
[335070657,1723806646408,-500.0,0.00043835,120]
[335070658,1723806646417,-164.593015,0.00043835,120]
[335070659,1723806646427,-500.0,0.00043835,120]
[335070660,1723806646437,-629.89,0.00043835,120]
[335070661,1723806646446,-544.01,0.00043835,120]
[335070662,1723806646456,-151.0,0.00043835,120]
[335070663,1723806646465,-500.0,0.00043835,120]
[335070664,1723806646476,-151.0,0.00043835,120]
[335070665,1723806646485,-151.0,0.00043835,120]
[335070666,1723806646495,-500.0,0.00043835,120]
[335070667,1723806646505,-151.0,0.00043835,120]
[335070668,1723806646514,-503.61225305,0.00043835,120]
[335070669,1723806646524,-151.0,0.00043835,120]
[335070670,1723806646535,-151.0,0.00043835,120]
[335070671,1723806646544,-515.41538328,0.00043835,120]
[335070672,1723806646556,-2314.36,0.00043835,120]
[335070673,1723806646566,-500.0,0.00043835,120]
[335070674,1723806646578,-503.18271109,0.00043835,120]
[335070675,1723806646587,-783.75,0.00043835,120]
[335070676,1723806646596,-500.0,0.00043835,120]
[335070677,1723806646606,-500.0,0.00043835,120]
[335070678,1723806646616,-158.69798781,0.00043835,120]
[335070679,1723806646625,-500.0,0.00043835,120]